lending/lending_fUSD_20251124
["ID","MTS","AMOUNT","RATE_DAILY","PERIOD"]
[394801506,1763965856543,-220.34943847,0.00036992,8]
[394801507,1763965856552,-542.34872209,0.00036992,8]
[394801508,1763965856562,-509.27131076,0.00036992,8]
[394801509,1763965856571,-500.0,0.00036992,8]
[394801510,1763965856580,-503.48087756,0.00036992,8]
[394801511,1763965856589,-500.0,0.00036992,8]
[394801512,1763965856599,-500.0,0.00036992,8]
[394801513,1763965856609,-500.0,0.00036992,8]
[394801514,1763965856618,-500.0,0.00036992,8]
[394801515,1763965856627,-500.0,0.00036992,8]
[394801516,1763965856636,-500.0,0.00036992,8]
[394801517,1763965856645,-506.86757343,0.00036992,8]
[394801518,1763965856654,-500.0,0.00036992,8]
[394801519,1763965856663,-500.0,0.00036992,8]
[394801520,1763965856673,-500.0,0.00036992,8]
[394801521,1763965856682,-500.0,0.00036992,8]
[394801522,1763965856692,-508.47064234,0.00036992,8]
[394801523,1763965856701,-502.43123505,0.00036992,8]
[394801524,1763965856710,-500.0,0.00036992,8]
[394801525,1763965856720,-503.20355607,0.00036992,8]
[394801526,1763965856729,-500.0,0.00036992,8]
[394801527,1763965856738,-500.0,0.00036992,8]
[394801528,1763965856748,-496.40646906,0.00036992,8]
[394801529,1763965856757,-500.0,0.00036992,8]
[394801530,1763965856767,-500.0,0.00036992,8]
[394801531,1763965856776,-507.32466653,0.00036992,8]
[394801532,1763965856786,-505.21522898,0.00036992,8]
[394801533,1763965856795,-500.0,0.00036992,8]
[394801534,1763965856804,-600.0,0.00036993,30]
[394801535,1763965856814,-223.23271902,0.00036999,15]
[394801536,1763965856823,-292.1188143,0.00036999,15]
[394801537,1763965856832,-500.0,0.00036999,15]
[394801538,1763965856842,-321.7920607,0.00036999,15]
[394801539,1763965856852,-500.0,0.00037016,8]
[394801540,1763965856861,-500.0,0.00037016,8]
[394801541,1763965856870,-500.0,0.00037016,8]
[394801542,1763965856879,-577.34831124,0.00037016,8]
[394801543,1763965856925,-579.28123361,0.00037016,8]
[394801544,1763965856934,-450.271918,0.0003705,8]
[394801545,1763965856943,-372.56261053,0.00037051,2]
[394801546,1763965856953,-1211.61,0.00037068,2]
[394801547,1763965856973,-173.39,0.00037068,2]
[394801548,1763965856985,-6636.89353573,0.00037093,2]
[394801549,1763965856994,-193.83373494,0.00037094,15]
[394801550,1763965857003,-150.0,0.00037128,15]
[394801551,1763965857012,-500.0,0.0003715,2]
[394801552,1763965857022,-17588.26928859,0.00037151,2]
[394801553,1763965857031,-500.0,0.00037151,8]
[394801554,1763965857040,-624.9708388,0.00037151,2]
[394801555,1763965857050,-500.0,0.00037151,8]
[394801556,1763965857060,-500.0,0.00037151,8]
[394801557,1763965857069,-479.96343751,0.00037151,8]
[394801558,1763965857079,-500.0,0.00037151,8]
[394801559,1763965857088,-503.23679119,0.00037151,8]
[394801560,1763965857098,-500.0,0.00037151,8]
[394801561,1763965857107,-500.0,0.00037151,8]
[394801562,1763965857116,-509.58653195,0.00037151,8]
[394801563,1763965857125,-634.82026114,0.00037151,8]
[394801564,1763965857135,-509.51051498,0.00037151,8]
[394801565,1763965857144,-500.0,0.00037151,8]
[394801566,1763965857153,-500.0,0.00037151,8]
[394801567,1763965857162,-500.0,0.00037151,8]
[394801568,1763965857172,-500.0,0.00037151,8]
[394801569,1763965857181,-151.0,0.00037151,31]
[394801570,1763965857191,-151.0,0.00037151,31]
[394801571,1763965857201,-500.0,0.00037156,7]
[394801572,1763965857211,-500.0,0.00037156,7]
[394801573,1763965857221,-900.0,0.00037156,7]
[394801574,1763965857230,-503.14774146,0.00037173,5]
[394801575,1763965857239,-202.60254574,0.00037225,2]
[394801576,1763965857249,-580.91990678,0.00037256,8]
[394801577,1763965857258,-500.0,0.00037256,8]
[394801578,1763965857267,-530.41664579,0.00037256,8]
[394801579,1763965857276,-328.26,0.00037256,8]
[394801580,1763965857285,-4333.78,0.00037256,8]
[394801581,1763965857294,-500.0,0.00037256,8]
[394801582,1763965857303,-2095.5,0.00037256,8]
[394801583,1763965857313,-405.58810803,0.00037256,8]
[394801584,1763965857322,-327.58380862,0.00037256,8]
[394801585,1763965857332,-586.44,0.00037256,8]
[394801586,1763965857341,-500.0,0.00037256,8]
[394801587,1763965857351,-619.11726001,0.00037256,8]
[394801588,1763965857361,-500.0,0.00037256,8]
[394801589,1763965857371,-500.0,0.00037256,8]
[394801590,1763965857380,-500.0,0.00037256,8]
[394801591,1763965857389,-500.0,0.00037256,8]
[394801592,1763965857398,-500.0,0.00037256,8]
[394801593,1763965857407,-500.0,0.00037256,8]
[394801594,1763965857416,-500.0,0.00037256,8]
[394801595,1763965857426,-500.0,0.00037256,8]
[394801596,1763965857435,-500.0,0.00037264,8]
[394801597,1763965857445,-500.0,0.00037264,8]
[394801598,1763965857454,-500.0,0.00037264,8]
[394801599,1763965857463,-500.0,0.00037264,8]
[394801600,1763965857472,-231.06105828,0.00037264,8]
[394801601,1763965857481,-500.0,0.00037264,8]
[394801602,1763965857492,-973.33,0.00037264,8]
[394801603,1763965857507,-191.31,0.00037264,8]
[394801604,1763965857516,-500.0,0.00037264,8]
[394801605,1763965857525,-500.0,0.00037264,8]
[394801606,1763965857535,-500.0,0.00037264,8]
[394801607,1763965857544,-199.27038878,0.00037264,8]
[394801608,1763965857554,-161.0,0.00037265,15]
[394801609,1763965857563,-500.0,0.00037265,8]
[394801610,1763965857573,-500.0,0.00037265,8]
[394801611,1763965857582,-500.0,0.00037265,8]
[394801612,1763965857591,-509.23,0.00037265,8]
[394801613,1763965857600,-500.0,0.00037265,8]
[394801614,1763965857609,-1000.0,0.00037265,8]
[394801615,1763965857619,-500.0,0.00037265,8]
[394801616,1763965857629,-500.0,0.00037265,8]
[394801617,1763965857638,-535.13289303,0.00037265,8]
[394801618,1763965857647,-541.46607761,0.00037265,8]
[394801619,1763965857657,-501.7743842,0.00037265,8]
[394801620,1763965857668,-500.0,0.00037265,8]
[394801621,1763965857678,-502.14743374,0.00037265,8]
[394801622,1763965857688,-1000.0,0.00037265,8]
[394801623,1763965857697,-502.09509925,0.00037265,8]
[394801624,1763965857707,-568.17806323,0.00037265,8]
[394801625,1763965857717,-502.19489977,0.00037265,8]
[394801626,1763965857726,-430.99,0.00037265,8]
[394801627,1763965857735,-399.53847454,0.00037265,8]
[394801628,1763965857745,-501.93838202,0.00037265,8]
[394801629,1763965857755,-542.56,0.00037265,8]
[394801630,1763965857764,-502.80499947,0.00037265,8]
[394801631,1763965857773,-534.99155595,0.00037265,8]
[394801632,1763965857783,-500.82005221,0.00037265,8]
[394801633,1763965857792,-191.6963164,0.00037265,8]
[394801634,1763965857801,-500.0,0.00037265,8]
[394801635,1763965857811,-500.79803136,0.00037265,8]
[394801636,1763965857820,-501.26142825,0.00037265,8]
[394801637,1763965857829,-583.89,0.00037265,8]
[394801638,1763965857838,-399.66,0.00037265,8]
[394801639,1763965857848,-500.0,0.00037265,8]
[394801640,1763965857858,-649.11866504,0.00037265,8]
[394801641,1763965857869,-500.0,0.00037265,8]
[394801642,1763965857880,-1721.82,0.00037265,8]
[394801643,1763965857890,-500.0,0.00037265,8]
[394801644,1763965857899,-171.66290747,0.00037265,8]
[394801645,1763965857908,-261.66072505,0.00037265,8]
[394801646,1763965857917,-500.0,0.00037265,8]
[394801647,1763965857927,-361.77186218,0.00037265,8]
[394801648,1763965857940,-255.3561148,0.00037265,8]
[394801649,1763965857950,-231.51227325,0.00037265,8]
[394801650,1763965857960,-500.0,0.00037265,8]
[394801651,1763965857971,-500.0,0.00037265,8]
[394801652,1763965857980,-500.0,0.00037265,8]
[394801653,1763965857990,-500.0,0.00037265,8]
[394801654,1763965857999,-500.0,0.00037265,2]
[394801655,1763965858009,-500.0,0.00037265,8]
[394801656,1763965858018,-500.0,0.00037265,8]
[394801657,1763965858028,-360.39,0.00037265,8]
[394801658,1763965858037,-500.0,0.00037265,8]
[394801659,1763965858048,-476.83,0.00037265,8]
[394801660,1763965858057,-500.0,0.00037265,8]
[394801661,1763965858066,-291.25,0.00037265,8]
[394801662,1763965858075,-285.6,0.00037265,8]
[394801663,1763965858084,-2560.55,0.00037265,8]
[394801664,1763965858093,-500.0,0.00037265,8]
[394801665,1763965858102,-500.0,0.00037266,8]
[394801666,1763965858111,-571.18,0.00037266,8]
[394801667,1763965858121,-500.0,0.00037266,8]
[394801668,1763965858130,-500.0,0.00037266,8]
[394801669,1763965858139,-500.0,0.00037266,8]
[394801670,1763965858148,-562.95710983,0.00037266,8]
[394801671,1763965858157,-500.0,0.00037266,8]
[394801672,1763965858168,-500.0,0.00037266,8]
[394801673,1763965858177,-500.0,0.00037266,8]
[394801674,1763965858186,-500.0,0.00037266,8]
[394801675,1763965858196,-500.0,0.00037266,8]
[394801676,1763965858208,-500.0,0.00037266,8]
[394801677,1763965858217,-803.08,0.00037266,8]
[394801678,1763965858226,-500.0,0.00037266,8]
[394801679,1763965858234,-500.0,0.00037266,8]
[394801680,1763965858243,-175.94714577,0.00037266,8]
[394801681,1763965858252,-503.72640452,0.00037266,8]
[394801682,1763965858261,-507.96465957,0.00037266,8]
[394801683,1763965858270,-500.0,0.00037266,8]
[394801684,1763965858279,-500.0,0.00037266,8]
[394801685,1763965858289,-890.18,0.00037266,14]
[394801686,1763965858298,-500.0,0.00037266,8]
[394801687,1763965858307,-500.0,0.00037266,8]
[394801688,1763965858316,-500.0,0.00037266,8]
[394801689,1763965858326,-500.0,0.00037266,8]
[394801690,1763965858335,-508.52903752,0.00037266,8]
[394801691,1763965858344,-500.0,0.00037266,8]
[394801692,1763965858354,-500.0,0.00037266,8]
[394801693,1763965858364,-610.15671961,0.00037266,8]
[394801694,1763965858374,-500.0,0.00037266,8]
[394801695,1763965858383,-500.0,0.00037266,8]
[394801696,1763965858392,-509.82712471,0.00037266,8]
[394801697,1763965858401,-393.5,0.00037266,8]
[394801698,1763965858411,-500.0,0.00037266,8]
[394801699,1763965858421,-597.40522392,0.00037266,8]
[394801700,1763965858430,-546.32,0.00037266,8]
[394801701,1763965858440,-500.0,0.00037266,8]
[394801702,1763965858450,-536.16144259,0.00037266,8]
[394801703,1763965858459,-500.0,0.00037266,8]
[394801704,1763965858469,-176.07029951,0.00037266,8]
[394801705,1763965858479,-500.0,0.00037266,8]
[394801706,1763965858488,-500.0,0.00037266,8]
[394801707,1763965858498,-500.0,0.00037266,8]
[394801708,1763965858507,-500.0,0.00037266,8]
[394801709,1763965858517,-500.0,0.00037266,8]
[394801710,1763965858526,-500.0,0.00037266,8]
[394801711,1763965858536,-625.69,0.00037266,8]
[394801712,1763965858545,-225.87114062,0.00037266,8]
[394801713,1763965858554,-500.0,0.00037266,8]
[394801714,1763965858564,-470.84913086,0.00037266,8]
[394801715,1763965858573,-205.89326415,0.00037266,8]
[394801716,1763965858582,-500.0,0.00037266,8]
[394801717,1763965858591,-500.0,0.00037266,8]
[394801718,1763965858601,-500.0,0.00037266,8]
[394801719,1763965858610,-582.36393356,0.00037266,8]
[394801720,1763965858620,-280.67378645,0.00037266,8]
[394801721,1763965858630,-500.0,0.00037266,8]
[394801722,1763965858640,-500.0,0.00037266,8]
[394801723,1763965858649,-500.0,0.00037266,8]
[394801724,1763965858659,-513.16819226,0.00037266,8]
[394801725,1763965858669,-500.0,0.00037266,8]
[394801726,1763965858679,-181.07661978,0.00037266,8]
[394801727,1763965858688,-550.01482503,0.00037266,8]
[394801728,1763965858698,-500.0,0.00037266,8]
[394801729,1763965858708,-500.0,0.00037266,8]
[394801730,1763965858717,-500.0,0.00037266,8]
[394801731,1763965858727,-282.18123783,0.00037266,8]
[394801732,1763965858737,-500.0,0.00037266,8]
[394801733,1763965858747,-1267.37,0.00037266,8]
[394801734,1763965858757,-309.39642034,0.00037266,8]
[394801735,1763965858768,-386.60822509,0.00037266,8]
[394801736,1763965858778,-500.0,0.00037266,8]
[394801737,1763965858788,-364.75587455,0.00037266,8]
[394801738,1763965858798,-500.0,0.00037266,8]
[394801739,1763965858807,-506.19708397,0.00037266,120]
[394801740,1763965858817,-501.99415913,0.00037266,8]
[394801741,1763965858827,-203.85295938,0.00037266,8]
[394801742,1763965858837,-505.48743476,0.00037266,8]
[394801743,1763965858847,-447.76326179,0.00037266,8]
[394801744,1763965858857,-500.0,0.00037266,8]
[394801745,1763965858867,-204.84468055,0.00037266,8]
[394801746,1763965858877,-500.0,0.00037266,8]
[394801747,1763965858886,-500.0,0.00037266,8]
[394801748,1763965858896,-241.60849711,0.00037266,8]
[394801749,1763965858907,-500.0,0.00037266,8]
[394801750,1763965858916,-500.0,0.00037266,8]
[394801751,1763965858926,-500.0,0.00037266,8]
[394801752,1763965858936,-504.41589576,0.00037266,8]
[394801753,1763965858946,-500.0,0.00037266,8]
[394801754,1763965858960,-509.38841321,0.00037266,8]
[394801755,1763965858971,-504.41230854,0.00037266,8]
[394801756,1763965858982,-500.0,0.00037266,8]
[394801757,1763965858991,-500.0,0.00037266,8]
[394801758,1763965859001,-500.0,0.00037266,8]
[394801759,1763965859011,-164.62616001,0.00037266,8]
[394801760,1763965859021,-500.0,0.00037266,8]
[394801761,1763965859031,-166.14622196,0.00037266,8]
[394801762,1763965859042,-497.63924147,0.00037266,8]
[394801763,1763965859055,-500.0,0.00037266,8]
[394801764,1763965859065,-231.62525193,0.00037266,8]
[394801765,1763965859074,-500.0,0.00037266,8]
[394801766,1763965859084,-500.0,0.00037266,8]
[394801767,1763965859094,-600.0,0.00037267,30]
[394801768,1763965859104,-500.0,0.0003729,8]
[394801769,1763965859113,-500.0,0.0003729,8]
[394801770,1763965859123,-929.97063,0.0003731,2]
[394801771,1763965859132,-500.92010829,0.00037321,5]
[394801772,1763965859141,-502.46810807,0.00037321,5]
[394801773,1763965859151,-213.25357626,0.00037321,5]
[394801774,1763965859160,-277.27918966,0.00037321,5]
[394801775,1763965859169,-1000.0,0.00037321,5]
[394801776,1763965859179,-501.02581299,0.00037321,5]
[394801777,1763965859188,-500.0,0.00037321,5]
[394801778,1763965859197,-1000.0,0.00037321,5]
[394801779,1763965859206,-505.0559587,0.00037321,5]
[394801780,1763965859215,-368.86223502,0.00037321,5]
[394801781,1763965859224,-830.84454354,0.00037321,5]
[394801782,1763965859234,-639.26901875,0.00037321,5]
[394801783,1763965859243,-501.75431702,0.00037321,5]
[394801784,1763965859253,-504.41368828,0.00037321,5]
[394801785,1763965859263,-40110.2220313,0.00037342,2]
[394801786,1763965859273,-500.0,0.0003735,2]
[394801787,1763965859283,-1362.33758212,0.00037351,8]
[394801788,1763965859293,-500.0,0.00037351,8]
[394801789,1763965859303,-500.0,0.00037351,8]
[394801790,1763965859312,-500.0,0.00037351,8]
[394801791,1763965859322,-500.0,0.00037351,8]
[394801792,1763965859331,-500.0,0.00037351,8]
[394801793,1763965859340,-500.0,0.00037351,8]
[394801794,1763965859350,-500.0,0.00037351,8]
[394801795,1763965859360,-500.0,0.00037351,8]
[394801796,1763965859370,-500.0,0.00037351,8]
[394801797,1763965859381,-500.0,0.00037351,8]
[394801798,1763965859390,-500.0,0.00037351,8]
[394801799,1763965859399,-500.0,0.00037351,8]
[394801800,1763965859408,-500.0,0.00037351,8]
[394801801,1763965859418,-500.0,0.00037351,8]
[394801802,1763965859427,-500.0,0.00037351,8]
[394801803,1763965859436,-247.89835245,0.00037351,8]
[394801804,1763965859445,-500.0,0.00037351,8]
[394801805,1763965859454,-500.0,0.00037351,8]
[394801806,1763965859465,-500.0,0.00037351,8]
[394801807,1763965859474,-500.0,0.00037351,8]
[394801808,1763965859484,-500.0,0.00037351,8]
[394801809,1763965859493,-500.0,0.00037351,8]
[394801810,1763965859502,-500.0,0.00037351,8]
[394801811,1763965859511,-500.0,0.00037351,8]
[394801812,1763965859521,-500.0,0.00037351,8]
[394801813,1763965859531,-620.0,0.00037351,8]
[394801814,1763965859540,-500.0,0.00037351,8]
[394801815,1763965859550,-500.0,0.00037351,8]
[394801816,1763965859561,-620.0,0.00037351,8]
[394801817,1763965859571,-500.0,0.00037351,8]
[394801818,1763965859582,-500.0,0.00037351,8]
[394801819,1763965859592,-500.0,0.00037351,8]
[394801820,1763965859602,-500.0,0.00037351,8]
[394801821,1763965859612,-500.0,0.00037351,8]
[394801822,1763965859624,-500.0,0.00037351,8]
[394801823,1763965859634,-500.0,0.00037351,8]
[394801824,1763965859645,-500.0,0.00037351,8]
[394801825,1763965859655,-500.0,0.00037351,8]
[394801826,1763965859665,-500.0,0.00037351,8]
[394801827,1763965859676,-500.0,0.00037351,8]
[394801828,1763965859686,-500.0,0.00037351,8]
[394801829,1763965859695,-500.0,0.00037351,8]
[394801830,1763965859705,-500.0,0.00037351,8]
[394801831,1763965859714,-500.0,0.00037351,8]
[394801832,1763965859724,-500.0,0.00037351,8]
[394801833,1763965859733,-500.0,0.00037351,8]
[394801834,1763965859743,-500.0,0.00037351,8]
[394801835,1763965859754,-500.0,0.00037351,8]
[394801836,1763965859763,-500.0,0.00037351,8]
[394801837,1763965859773,-500.0,0.00037351,8]
[394801838,1763965859782,-500.0,0.00037351,8]
[394801839,1763965859791,-500.0,0.00037351,8]
[394801840,1763965859801,-500.0,0.00037351,8]
[394801841,1763965859810,-500.0,0.00037351,8]
[394801842,1763965859820,-500.0,0.00037351,8]
[394801843,1763965859829,-500.0,0.00037351,8]
[394801844,1763965859839,-500.0,0.00037351,8]
[394801845,1763965859848,-500.0,0.00037351,8]
[394801846,1763965859857,-500.0,0.00037351,8]
[394801847,1763965859868,-500.0,0.00037351,8]
[394801848,1763965859878,-500.0,0.00037351,8]
[394801849,1763965859888,-597.09424157,0.00037351,8]
[394801850,1763965859897,-200.0,0.00037352,2]
[394801851,1763965859907,-500.0,0.00037425,8]
[394801852,1763965859917,-502.91881483,0.00037425,8]
[394801853,1763965859927,-508.54170318,0.00037425,8]
[394801854,1763965859937,-409.26912338,0.00037425,8]
[394801855,1763965859947,-617.9195348,0.00037425,8]
[394801856,1763965859957,-500.0,0.00037425,8]
[394801857,1763965859967,-500.0,0.00037425,8]
[394801858,1763965859982,-3317.41,0.0003743,120]
[394801859,1763965859992,-3317.41,0.00037458,120]
[394801860,1763965860001,-532.0,0.00037461,120]
[394801861,1763965860012,-3317.41,0.00037487,120]
[394801862,1763965860022,-3317.41,0.00037518,120]
[394801863,1763965860032,-257.49,0.0003753,8]
[394801864,1763965860042,-4333.78,0.0003753,8]
[394801865,1763965860054,-500.0,0.0003753,8]
[394801866,1763965860064,-2095.5,0.0003753,8]
[394801867,1763965860075,-586.44,0.0003753,8]
[394801868,1763965860085,-192.29956311,0.0003753,8]
[394801869,1763965860095,-533.23985474,0.0003753,8]
[394801870,1763965860104,-275.5,0.0003753,8]
[394801871,1763965860115,-500.0,0.0003753,8]
[394801872,1763965860125,-500.0,0.0003753,8]
[394801873,1763965860136,-500.0,0.0003753,8]
[394801874,1763965860146,-215.03559866,0.0003753,8]
[394801875,1763965860155,-186.17470191,0.0003753,8]
[394801876,1763965860166,-500.0,0.0003753,8]
[394801877,1763965860175,-500.0,0.00037534,120]
[394801878,1763965860185,-500.0,0.00037538,8]
[394801879,1763965860196,-564.03595246,0.00037538,8]
[394801880,1763965860206,-500.0,0.00037538,8]
[394801881,1763965860215,-586.34347602,0.00037538,8]
[394801882,1763965860226,-500.0,0.00037538,8]
[394801883,1763965860236,-973.33,0.00037538,8]
[394801884,1763965860246,-387.23781826,0.00037538,8]
[394801885,1763965860256,-500.0,0.00037538,8]
[394801886,1763965860266,-500.0,0.00037538,8]
[394801887,1763965860276,-500.0,0.00037539,8]
[394801888,1763965860287,-364.67267847,0.00037539,8]
[394801889,1763965860297,-500.0,0.00037539,8]
[394801890,1763965860307,-412.17342089,0.00037539,8]
[394801891,1763965860317,-1000.0,0.00037539,8]
[394801892,1763965860327,-649.0417843,0.00037539,8]
[394801893,1763965860337,-500.0,0.00037539,8]
[394801894,1763965860346,-500.0,0.00037539,8]
[394801895,1763965860356,-622.69887636,0.00037539,8]
[394801896,1763965860366,-500.0,0.00037539,8]
[394801897,1763965860377,-399.21,0.00037539,8]
[394801898,1763965860387,-500.0,0.00037539,8]
[394801899,1763965860396,-1721.82,0.00037539,8]
[394801900,1763965860406,-500.0,0.00037539,8]
[394801901,1763965860415,-500.0,0.00037539,8]
[394801902,1763965860424,-500.0,0.00037539,8]
[394801903,1763965860433,-500.0,0.00037539,8]
[394801904,1763965860444,-500.0,0.00037539,8]
[394801905,1763965860453,-500.0,0.00037539,2]
[394801906,1763965860463,-500.0,0.00037539,8]
[394801907,1763965860474,-262.93,0.00037539,8]
[394801908,1763965860485,-500.0,0.00037539,8]
[394801909,1763965860495,-500.0,0.00037539,8]
[394801910,1763965860504,-2560.55,0.00037539,8]
[394801911,1763965860514,-500.0,0.00037539,8]
[394801912,1763965860523,-500.0,0.0003754,8]
[394801913,1763965860532,-571.18,0.0003754,8]
[394801914,1763965860542,-500.0,0.0003754,8]
[394801915,1763965860552,-380.87627712,0.0003754,8]
[394801916,1763965860562,-347.18679249,0.0003754,8]
[394801917,1763965860572,-500.0,0.0003754,8]
[394801918,1763965860582,-293.49583677,0.0003754,8]
[394801919,1763965860593,-240.38608978,0.0003754,8]
[394801920,1763965860738,-198.98627884,0.0003754,8]
[394801921,1763965860747,-569.80386363,0.0003754,8]
[394801922,1763965860757,-154.71680889,0.0003754,8]
[394801923,1763965860766,-803.08,0.0003754,8]
[394801924,1763965860776,-500.0,0.0003754,8]
[394801925,1763965860785,-500.0,0.0003754,8]
[394801926,1763965860795,-500.0,0.0003754,8]
[394801927,1763965860805,-500.0,0.0003754,8]
[394801928,1763965860814,-890.18,0.0003754,14]
[394801929,1763965860824,-500.0,0.0003754,8]
[394801930,1763965860833,-517.27641058,0.0003754,8]
[394801931,1763965860843,-302.67,0.0003754,8]
[394801932,1763965860853,-423.85584845,0.0003754,8]
[394801933,1763965860862,-500.0,0.0003754,8]
[394801934,1763965860873,-551.69990184,0.0003754,8]
[394801935,1763965860883,-500.0,0.0003754,8]
[394801936,1763965860892,-500.0,0.0003754,8]
[394801937,1763965860901,-500.0,0.0003754,8]
[394801938,1763965860910,-500.0,0.0003754,8]
[394801939,1763965860920,-500.0,0.0003754,8]
[394801940,1763965860929,-500.0,0.0003754,8]
[394801941,1763965860939,-500.0,0.0003754,8]
[394801942,1763965860949,-512.83166963,0.0003754,8]
[394801943,1763965860958,-500.0,0.0003754,8]
[394801944,1763965860970,-165.62572175,0.0003754,8]
[394801945,1763965860980,-325.46572805,0.0003754,8]
[394801946,1763965860991,-625.69,0.0003754,8]
[394801947,1763965861001,-258.66547443,0.0003754,8]
[394801948,1763965861011,-500.0,0.0003754,8]
[394801949,1763965861022,-500.0,0.0003754,8]
[394801950,1763965861032,-356.62214402,0.0003754,8]
[394801951,1763965861043,-500.0,0.0003754,8]
[394801952,1763965861054,-500.0,0.0003754,8]
[394801953,1763965861064,-500.0,0.0003754,8]
[394801954,1763965861074,-500.0,0.0003754,8]
[394801955,1763965861083,-500.0,0.0003754,8]
[394801956,1763965861093,-585.50038755,0.0003754,8]
[394801957,1763965861103,-500.0,0.0003754,8]
[394801958,1763965861113,-500.0,0.0003754,8]
[394801959,1763965861126,-1267.37,0.0003754,8]
[394801960,1763965861136,-500.0,0.0003754,8]
[394801961,1763965861146,-500.0,0.0003754,8]
[394801962,1763965861156,-251.56417173,0.0003754,8]
[394801963,1763965861166,-500.0,0.0003754,8]
[394801964,1763965861176,-500.0,0.0003754,8]
[394801965,1763965861186,-500.0,0.0003754,8]
[394801966,1763965861196,-500.0,0.0003754,8]
[394801967,1763965861206,-500.0,0.0003754,8]
[394801968,1763965861216,-505.97763007,0.0003754,8]
[394801969,1763965861226,-500.0,0.0003754,8]
[394801970,1763965861235,-507.86176218,0.0003754,8]
[394801971,1763965861245,-537.98399219,0.0003754,8]
[394801972,1763965861255,-643.27081144,0.0003754,8]
[394801973,1763965861265,-256.43694921,0.0003754,8]
[394801974,1763965861274,-500.0,0.0003754,8]
[394801975,1763965861283,-500.0,0.0003754,8]
[394801976,1763965861293,-600.0,0.00037541,30]
[394801977,1763965861302,-3317.41,0.0003755,120]
[394801978,1763965861312,-500.0,0.00037564,8]
[394801979,1763965861321,-524.31174731,0.00037564,8]
[394801980,1763965861331,-6528.53148147,0.00037567,2]
[394801981,1763965861341,-6636.89353573,0.00037569,2]
[394801982,1763965861351,-193.83373494,0.0003757,15]
[394801983,1763965861360,-3317.41,0.00037584,120]
[394801984,1763965861375,-404.89,0.00037603,2]
[394801985,1763965861386,-166.66,0.0003761,30]
[394801986,1763965861397,-3317.41,0.00037621,120]
[394801987,1763965861406,-538.16914144,0.00037636,2]
[394801988,1763965861416,-300.0,0.00037646,2]
[394801989,1763965861425,-3317.41,0.00037659,120]
[394801990,1763965861435,-166.72,0.00037663,2]
[394801991,1763965861445,-275.19794295,0.0003768,2]
[394801992,1763965861455,-500.0,0.00037699,8]
[394801993,1763965861465,-597.85528247,0.00037699,8]
[394801994,1763965861475,-500.0,0.00037699,8]
[394801995,1763965861485,-150.0,0.000377,2]
[394801996,1763965861495,-228.73,0.000377,30]
[394801997,1763965861505,-171.05,0.000377,14]
[394801998,1763965861515,-3317.41,0.000377,120]
[394801999,1763965861526,-500.0,0.00037725,2]
[394802000,1763965861536,-200.0,0.00037726,2]
[394802001,1763965861546,-5073.0,0.00037739,5]
[394802002,1763965861556,-3317.41,0.00037745,120]
[394802003,1763965861565,-3317.41,0.00037793,120]
[394802004,1763965861575,-1010.38648,0.000378,30]
[394802005,1763965861585,-4333.78,0.00037804,8]